[Event "Titled Tuesday Blitz June 6 Early 2023"]
[White "Ashraf, Artin"]
[Black "Pinheiro, Iung Alicio de O."]
[WhiteFideId "22514805"]
[BlackFideId "2104350"]
[WhiteElo "2224"]
[BlackElo "2283"]
[Result "1-0"]
[Round "10"]
[TimeControl "180+2"]
[Date "2023.06.06"]
[WhiteClock "0:00:22"]
[BlackClock "0:00:05"]
[Board "49"]

1. d4 {[%clk 0:03:00]}  Nf6 {[%clk 0:02:58]} 2. Nc3 {[%clk 0:03:01]}  d5 {[%clk 0:02:57]} 3. Bf4 {[%clk 0:03:01]}  g6 {[%clk 0:02:57]} 4. Nb5 {[%clk 0:03:00]}  Na6 {[%clk 0:02:56]} 5. e3 {[%clk 0:03:01]}  Bg7 {[%clk 0:02:56]} 6. Be2 {[%clk 0:03:00]}  O-O {[%clk 0:02:56]} 7. Nf3 {[%clk 0:02:59]}  Bf5 {[%clk 0:02:44]} 8. h3 {[%clk 0:02:54]}  Be4 {[%clk 0:02:22]} 9. O-O {[%clk 0:02:52]}  Nd7 {[%clk 0:02:08]} 10. Nd2 {[%clk 0:02:04]}  Bf5 {[%clk 0:02:00]} 11. c4 {[%clk 0:01:58]}  e5 {[%clk 0:01:54]} 12. dxe5 {[%clk 0:01:53]}  Nxe5 {[%clk 0:01:55]} 13. cxd5 {[%clk 0:01:48]}  Qxd5 {[%clk 0:01:50]} 14. e4 {[%clk 0:01:48]}  Bxe4 {[%clk 0:00:55]} 15. Nc3 {[%clk 0:01:47]}  Qe6 {[%clk 0:00:45]} 16. Ndxe4 {[%clk 0:01:44]}  Rad8 {[%clk 0:00:45]} 17. Qa4 {[%clk 0:01:42]}  Nd3 {[%clk 0:00:41]} 18. Bxd3 {[%clk 0:01:36]}  Rxd3 {[%clk 0:00:42]} 19. Rfe1 {[%clk 0:01:36]}  Qd7 {[%clk 0:00:32]} 20. Qxd7 {[%clk 0:01:31]}  Rxd7 {[%clk 0:00:31]} 21. Rad1 {[%clk 0:01:30]}  Rfd8 {[%clk 0:00:30]} 22. Rxd7 {[%clk 0:01:31]}  Rxd7 {[%clk 0:00:31]} 23. Rd1 {[%clk 0:01:22]}  Rxd1+ {[%clk 0:00:30]} 24. Nxd1 {[%clk 0:01:23]}  h6 {[%clk 0:00:31]} 25. a3 {[%clk 0:01:22]}  f5 {[%clk 0:00:31]} 26. Nec3 {[%clk 0:01:19]}  c6 {[%clk 0:00:32]} 27. Ne3 {[%clk 0:01:16]}  Nc5 {[%clk 0:00:32]} 28. Bb8 {[%clk 0:01:10]}  a6 {[%clk 0:00:31]} 29. Nc4 {[%clk 0:01:10]}  Nd3 {[%clk 0:00:31]} 30. Nd1 {[%clk 0:01:04]}  b5 {[%clk 0:00:24]} 31. Na5 {[%clk 0:01:03]}  c5 {[%clk 0:00:25]} 32. b3 {[%clk 0:01:03]}  Kf7 {[%clk 0:00:21]} 33. Kf1 {[%clk 0:01:02]}  Ke6 {[%clk 0:00:19]} 34. Ke2 {[%clk 0:01:02]}  Nf4+ {[%clk 0:00:19]} 35. Bxf4 {[%clk 0:01:01]}  g5 {[%clk 0:00:12]} 36. Be3 {[%clk 0:01:00]}  Kd5 {[%clk 0:00:13]} 37. Nc3+ {[%clk 0:00:59]}  Bxc3 {[%clk 0:00:12]} 38. Nb7 {[%clk 0:00:59]}  c4 {[%clk 0:00:11]} 39. bxc4+ {[%clk 0:00:57]}  Kxc4 {[%clk 0:00:12]} 40. Nd6+ {[%clk 0:00:57]}  Kb3 {[%clk 0:00:13]} 41. Nxf5 {[%clk 0:00:57]}  Kxa3 {[%clk 0:00:13]} 42. Kd3 {[%clk 0:00:56]}  Bf6 {[%clk 0:00:11]} 43. Nxh6 {[%clk 0:00:44]}  a5 {[%clk 0:00:10]} 44. Nf7 {[%clk 0:00:40]}  b4 {[%clk 0:00:10]} 45. Nxg5 {[%clk 0:00:40]}  b3 {[%clk 0:00:09]} 46. Ne4 {[%clk 0:00:40]}  Bh8 {[%clk 0:00:08]} 47. Nd2 {[%clk 0:00:37]}  a4 {[%clk 0:00:06]} 48. h4 {[%clk 0:00:27]}  Ka2 {[%clk 0:00:06]} 49. g4 {[%clk 0:00:27]}  a3 {[%clk 0:00:06]} 50. g5 {[%clk 0:00:27]}  b2 {[%clk 0:00:07]} 51. Kc2 {[%clk 0:00:26]}  Ka1 {[%clk 0:00:05]} 52. Bc5 {[%clk 0:00:22]} 1-0


[Site "https://www.chess.com"]

[Event "Titled Tuesday Blitz June 6 Early 2023"]
[White "Belov, Alexei"]
[Black "Andreev, Konstantin"]
[WhiteFideId "4128206"]
[BlackFideId "24239305"]
[WhiteElo "2629"]
[BlackElo "2106"]
[Result "1-0"]
[Round "10"]
[TimeControl "180+2"]
[Date "2023.06.06"]
[WhiteClock "0:00:10"]
[BlackClock "0:00:01"]
[Board "50"]

1. e4 {[%clk 0:03:00]}  c5 {[%clk 0:02:59]} 2. Nf3 {[%clk 0:03:00]}  e6 {[%clk 0:03:00]} 3. d4 {[%clk 0:03:00]}  cxd4 {[%clk 0:03:00]} 4. Nxd4 {[%clk 0:03:01]}  Nc6 {[%clk 0:03:01]} 5. Nc3 {[%clk 0:03:01]}  Qc7 {[%clk 0:03:01]} 6. Be2 {[%clk 0:03:01]}  a6 {[%clk 0:03:00]} 7. O-O {[%clk 0:03:01]}  Nf6 {[%clk 0:03:01]} 8. a4 {[%clk 0:03:01]}  Be7 {[%clk 0:03:00]} 9. Be3 {[%clk 0:03:00]}  O-O {[%clk 0:03:00]} 10. f4 {[%clk 0:03:00]}  d6 {[%clk 0:02:58]} 11. Kh1 {[%clk 0:03:00]}  Bd7 {[%clk 0:02:48]} 12. Nb3 {[%clk 0:03:00]}  Na5 {[%clk 0:02:41]} 13. e5 {[%clk 0:03:00]}  dxe5 {[%clk 0:02:39]} 14. fxe5 {[%clk 0:03:00]}  Nd5 {[%clk 0:02:10]} 15. Nxd5 {[%clk 0:02:41]}  exd5 {[%clk 0:02:10]} 16. Nxa5 {[%clk 0:02:34]}  Qxa5 {[%clk 0:02:07]} 17. c4 {[%clk 0:02:34]}  Be6 {[%clk 0:02:00]} 18. cxd5 {[%clk 0:02:14]}  Bxd5 {[%clk 0:01:57]} 19. Bd4 {[%clk 0:02:06]}  Rad8 {[%clk 0:01:54]} 20. Bc3 {[%clk 0:01:46]}  Qb6 {[%clk 0:01:23]} 21. Qe1 {[%clk 0:01:41]}  Qg6 {[%clk 0:01:20]} 22. Bf3 {[%clk 0:01:34]}  Bc4 {[%clk 0:01:18]} 23. Rf2 {[%clk 0:01:30]}  Bc5 {[%clk 0:01:14]} 24. Rd2 {[%clk 0:01:28]}  Qg5 {[%clk 0:01:02]} 25. Rxd8 {[%clk 0:01:13]}  Rxd8 {[%clk 0:01:03]} 26. Bxb7 {[%clk 0:01:11]}  h5 {[%clk 0:00:39]} 27. Rd1 {[%clk 0:01:00]}  Rxd1 {[%clk 0:00:37]} 28. Qxd1 {[%clk 0:01:00]}  h4 {[%clk 0:00:38]} 29. h3 {[%clk 0:00:55]}  Be3 {[%clk 0:00:34]} 30. b3 {[%clk 0:00:42]}  Be6 {[%clk 0:00:31]} 31. Bxa6 {[%clk 0:00:27]}  Bf4 {[%clk 0:00:30]} 32. Bc4 {[%clk 0:00:19]}  Qg3 {[%clk 0:00:25]} 33. Qg1 {[%clk 0:00:12]}  Bxc4 {[%clk 0:00:23]} 34. bxc4 {[%clk 0:00:12]}  Qxc3 {[%clk 0:00:22]} 35. e6 {[%clk 0:00:11]}  fxe6 {[%clk 0:00:22]} 36. Qf1 {[%clk 0:00:12]}  Bd6 {[%clk 0:00:19]} 37. Qd1 {[%clk 0:00:10]}  Qe5 {[%clk 0:00:18]} 38. Kg1 {[%clk 0:00:10]}  Bc5+ {[%clk 0:00:17]} 39. Kf1 {[%clk 0:00:10]}  Qd4 {[%clk 0:00:17]} 40. Qe2 {[%clk 0:00:09]}  Qa1+ {[%clk 0:00:16]} 41. Qe1 {[%clk 0:00:09]}  Qxe1+ {[%clk 0:00:16]} 42. Kxe1 {[%clk 0:00:10]}  Kf7 {[%clk 0:00:16]} 43. Ke2 {[%clk 0:00:11]}  Ke7 {[%clk 0:00:15]} 44. Kf3 {[%clk 0:00:11]}  Kd6 {[%clk 0:00:13]} 45. Ke4 {[%clk 0:00:12]}  Bg1 {[%clk 0:00:11]} 46. a5 {[%clk 0:00:11]}  Ba7 {[%clk 0:00:08]} 47. a6 {[%clk 0:00:11]}  Bb6 {[%clk 0:00:06]} 48. Kf4 {[%clk 0:00:11]}  Ba7 {[%clk 0:00:05]} 49. Kg5 {[%clk 0:00:10]}  Bf2 {[%clk 0:00:05]} 50. Kf4 {[%clk 0:00:10]}  Bb6 {[%clk 0:00:03]} 51. Ke4 {[%clk 0:00:10]}  g6 {[%clk 0:00:03]} 52. Kf4 {[%clk 0:00:10]}  Kc5 {[%clk 0:00:03]} 53. Ke5 {[%clk 0:00:10]}  Kxc4 {[%clk 0:00:03]} 54. Kxe6 {[%clk 0:00:11]}  Kd4 {[%clk 0:00:03]} 55. Kf6 {[%clk 0:00:11]}  Ke4 {[%clk 0:00:04]} 56. Kg5 {[%clk 0:00:11]}  Bd8+ {[%clk 0:00:02]} 57. Kxg6 {[%clk 0:00:10]}  Bb6 {[%clk 0:00:03]} 58. Kh5 {[%clk 0:00:10]}  Kf5 {[%clk 0:00:01]} 59. Kxh4 {[%clk 0:00:10]} 1-0


[Site "https://www.chess.com"]

[Event "Titled Tuesday Blitz June 6 Early 2023"]
[White "Lee, Qing Aun"]
[Black "Arencibia Monduy, Antonio"]
[WhiteFideId "5804167"]
[BlackFideId "3507939"]
[WhiteElo "2179"]
[BlackElo "2492"]
[Result "1-0"]
[Round "10"]
[TimeControl "180+2"]
[Date "2023.06.06"]
[WhiteClock "0:00:27"]
[BlackClock "0:00:02"]
[Board "54"]

1. d4 {[%clk 0:03:00]}  Nf6 {[%clk 0:02:59]} 2. Nc3 {[%clk 0:02:59]}  d5 {[%clk 0:02:53]} 3. Bf4 {[%clk 0:02:58]}  a6 {[%clk 0:02:53]} 4. e3 {[%clk 0:02:57]}  e6 {[%clk 0:02:53]} 5. g4 {[%clk 0:02:57]}  Bd6 {[%clk 0:02:53]} 6. g5 {[%clk 0:02:56]}  Ne4 {[%clk 0:02:47]} 7. Nxe4 {[%clk 0:02:54]}  dxe4 {[%clk 0:02:46]} 8. Bg2 {[%clk 0:02:54]}  Bxf4 {[%clk 0:02:39]} 9. exf4 {[%clk 0:02:54]}  f5 {[%clk 0:02:30]} 10. f3 {[%clk 0:02:30]}  O-O {[%clk 0:02:17]} 11. Ne2 {[%clk 0:02:29]}  exf3 {[%clk 0:02:13]} 12. Bxf3 {[%clk 0:02:29]}  Nc6 {[%clk 0:02:00]} 13. Qd2 {[%clk 0:02:24]}  Ne7 {[%clk 0:01:53]} 14. O-O-O {[%clk 0:02:23]}  Bd7 {[%clk 0:01:53]} 15. Rhe1 {[%clk 0:02:19]}  Rb8 {[%clk 0:01:52]} 16. Nc3 {[%clk 0:02:11]}  c6 {[%clk 0:01:46]} 17. Na4 {[%clk 0:01:58]}  b6 {[%clk 0:01:42]} 18. h4 {[%clk 0:01:49]}  Qc7 {[%clk 0:01:41]} 19. h5 {[%clk 0:01:47]}  Rbd8 {[%clk 0:01:37]} 20. Nc3 {[%clk 0:01:40]}  Nd5 {[%clk 0:01:34]} 21. Nxd5 {[%clk 0:01:37]}  cxd5 {[%clk 0:01:34]} 22. h6 {[%clk 0:01:31]}  g6 {[%clk 0:01:32]} 23. Re5 {[%clk 0:01:27]}  Rf7 {[%clk 0:01:32]} 24. Rde1 {[%clk 0:01:27]}  Bc8 {[%clk 0:01:25]} 25. R1e3 {[%clk 0:01:25]}  Rd6 {[%clk 0:01:23]} 26. Qe2 {[%clk 0:01:20]}  Bd7 {[%clk 0:00:45]} 27. Kb1 {[%clk 0:01:08]}  Qb7 {[%clk 0:00:26]} 28. c4 {[%clk 0:01:05]}  Qc7 {[%clk 0:00:07]} 29. cxd5 {[%clk 0:01:03]}  exd5 {[%clk 0:00:06]} 30. Rc3 {[%clk 0:00:53]}  Qd8 {[%clk 0:00:05]} 31. Bxd5 {[%clk 0:00:52]}  Kf8 {[%clk 0:00:02]} 32. Bxf7 {[%clk 0:00:51]}  Kxf7 {[%clk 0:00:03]} 33. d5 {[%clk 0:00:45]}  Bb5 {[%clk 0:00:02]} 34. Qd2 {[%clk 0:00:37]}  Qd7 {[%clk 0:00:02]} 35. a3 {[%clk 0:00:34]}  a5 {[%clk 0:00:02]} 36. Qc2 {[%clk 0:00:31]}  Qd8 {[%clk 0:00:01]} 37. Rc7+ {[%clk 0:00:30]}  Bd7 {[%clk 0:00:02]} 38. Qc3 {[%clk 0:00:29]}  Kf8 {[%clk 0:00:02]} 39. Re1 {[%clk 0:00:27]} 1-0


[Site "https://www.chess.com"]

[Event "Titled Tuesday Blitz June 6 Early 2023"]
[White "Hristodoulou, Panagiotis"]
[Black "Goroshkov, Maksym"]
[WhiteFideId "4214340"]
[BlackFideId "14142716"]
[WhiteElo "2272"]
[BlackElo "2322"]
[Result "1/2-1/2"]
[Round "10"]
[TimeControl "180+2"]
[Date "2023.06.06"]
[WhiteClock "0:00:03"]
[BlackClock "0:00:24"]
[Board "56"]

1. e4 {[%clk 0:02:19]}  e5 {[%clk 0:02:59]} 2. Nf3 {[%clk 0:02:19]}  d6 {[%clk 0:02:59]} 3. d4 {[%clk 0:02:18]}  Bg4 {[%clk 0:03:00]} 4. dxe5 {[%clk 0:02:18]}  Nd7 {[%clk 0:03:01]} 5. exd6 {[%clk 0:02:17]}  Bxd6 {[%clk 0:03:01]} 6. Be2 {[%clk 0:02:17]}  Ngf6 {[%clk 0:03:02]} 7. e5 {[%clk 0:02:14]}  Bxe5 {[%clk 0:03:01]} 8. Nxe5 {[%clk 0:02:11]}  Nxe5 {[%clk 0:03:02]} 9. Bxg4 {[%clk 0:02:09]}  Nfxg4 {[%clk 0:02:53]} 10. Qxd8+ {[%clk 0:02:07]}  Rxd8 {[%clk 0:02:54]} 11. Bf4 {[%clk 0:02:06]}  Ng6 {[%clk 0:02:50]} 12. Bg3 {[%clk 0:02:03]}  O-O {[%clk 0:02:46]} 13. O-O {[%clk 0:02:02]}  Rd7 {[%clk 0:02:41]} 14. Nc3 {[%clk 0:02:02]}  h5 {[%clk 0:02:39]} 15. Rad1 {[%clk 0:02:00]}  Rxd1 {[%clk 0:02:27]} 16. Rxd1 {[%clk 0:01:59]}  N4e5 {[%clk 0:02:25]} 17. h4 {[%clk 0:01:40]}  f6 {[%clk 0:02:20]} 18. b3 {[%clk 0:01:38]}  Rf7 {[%clk 0:02:15]} 19. f3 {[%clk 0:01:33]}  Rd7 {[%clk 0:02:14]} 20. Rxd7 {[%clk 0:01:33]}  Nxd7 {[%clk 0:02:15]} 21. Bxc7 {[%clk 0:01:30]}  Nxh4 {[%clk 0:02:15]} 22. Nb5 {[%clk 0:01:30]}  a6 {[%clk 0:02:15]} 23. Nd6 {[%clk 0:01:31]}  b5 {[%clk 0:02:15]} 24. Kf2 {[%clk 0:01:21]}  Kf8 {[%clk 0:02:12]} 25. g3 {[%clk 0:01:12]}  Ng6 {[%clk 0:02:12]} 26. Nf5 {[%clk 0:01:12]}  Nge5 {[%clk 0:02:09]} 27. Ke3 {[%clk 0:01:09]}  g6 {[%clk 0:02:06]} 28. Nd4 {[%clk 0:01:08]}  Ke7 {[%clk 0:02:06]} 29. f4 {[%clk 0:01:06]}  Ng4+ {[%clk 0:02:04]} 30. Kf3 {[%clk 0:01:06]}  g5 {[%clk 0:02:03]} 31. Ba5 {[%clk 0:00:57]}  gxf4 {[%clk 0:02:01]} 32. Kxf4 {[%clk 0:00:53]}  Nge5 {[%clk 0:01:54]} 33. Nf5+ {[%clk 0:00:53]}  Kf7 {[%clk 0:01:52]} 34. Bc3 {[%clk 0:00:49]}  Ng6+ {[%clk 0:01:38]} 35. Ke4 {[%clk 0:00:48]}  Ne7 {[%clk 0:01:33]} 36. Nxe7 {[%clk 0:00:42]}  Kxe7 {[%clk 0:01:34]} 37. Kf5 {[%clk 0:00:42]}  Kf7 {[%clk 0:01:31]} 38. Bd4 {[%clk 0:00:42]}  Ke7 {[%clk 0:01:28]} 39. c3 {[%clk 0:00:33]}  Kf7 {[%clk 0:01:23]} 40. c4 {[%clk 0:00:33]}  bxc4 {[%clk 0:01:23]} 41. bxc4 {[%clk 0:00:34]}  Ke7 {[%clk 0:01:17]} 42. c5 {[%clk 0:00:34]}  Kd8 {[%clk 0:01:04]} 43. Bxf6+ {[%clk 0:00:27]}  Kc7 {[%clk 0:01:03]} 44. Be7 {[%clk 0:00:27]}  Kc6 {[%clk 0:00:53]} 45. Kg5 {[%clk 0:00:26]}  Ne5 {[%clk 0:00:53]} 46. Kxh5 {[%clk 0:00:25]}  Nd3 {[%clk 0:00:53]} 47. g4 {[%clk 0:00:24]}  Nf4+ {[%clk 0:00:49]} 48. Kh6 {[%clk 0:00:23]}  Nd5 {[%clk 0:00:50]} 49. Bd6 {[%clk 0:00:22]}  Kd7 {[%clk 0:00:40]} 50. g5 {[%clk 0:00:19]}  Ke6 {[%clk 0:00:40]} 51. g6 {[%clk 0:00:19]}  Nf6 {[%clk 0:00:39]} 52. g7 {[%clk 0:00:10]}  Kf7 {[%clk 0:00:39]} 53. c6 {[%clk 0:00:09]}  Ng8+ {[%clk 0:00:37]} 54. Kg5 {[%clk 0:00:04]}  Nf6 {[%clk 0:00:35]} 55. Kf5 {[%clk 0:00:04]}  Ne8 {[%clk 0:00:35]} 56. Be5 {[%clk 0:00:05]}  a5 {[%clk 0:00:33]} 57. c7 {[%clk 0:00:04]}  Nxc7 {[%clk 0:00:33]} 58. Bxc7 {[%clk 0:00:05]}  Kxg7 {[%clk 0:00:34]} 59. Ke6 {[%clk 0:00:05]}  a4 {[%clk 0:00:35]} 60. Kd7 {[%clk 0:00:04]}  Kf7 {[%clk 0:00:35]} 61. Bd6 {[%clk 0:00:04]}  Kf6 {[%clk 0:00:35]} 62. Kc6 {[%clk 0:00:04]}  Ke6 {[%clk 0:00:36]} 63. Bc5 {[%clk 0:00:05]}  Ke5 {[%clk 0:00:36]} 64. Kb5 {[%clk 0:00:04]}  Kd5 {[%clk 0:00:37]} 65. Bb4 {[%clk 0:00:04]}  Ke6 {[%clk 0:00:35]} 66. Kc6 {[%clk 0:00:04]}  Ke5 {[%clk 0:00:35]} 67. a3 {[%clk 0:00:04]}  Ke6 {[%clk 0:00:35]} 68. Bd6 {[%clk 0:00:04]}  Kf7 {[%clk 0:00:35]} 69. Bh2 {[%clk 0:00:04]}  Ke8 {[%clk 0:00:34]} 70. Kc7 {[%clk 0:00:02]}  Ke7 {[%clk 0:00:34]} 71. Bd6+ {[%clk 0:00:02]}  Kf7 {[%clk 0:00:31]} 72. Kc6 {[%clk 0:00:03]}  Ke8 {[%clk 0:00:29]} 73. Bc5 {[%clk 0:00:04]}  Kd8 {[%clk 0:00:29]} 74. Kb7 {[%clk 0:00:04]}  Kd7 {[%clk 0:00:30]} 75. Bb6 {[%clk 0:00:03]}  Kd6 {[%clk 0:00:30]} 76. Ka6 {[%clk 0:00:03]}  Kc6 {[%clk 0:00:29]} 77. Be3 {[%clk 0:00:04]}  Kc7 {[%clk 0:00:29]} 78. Ba7 {[%clk 0:00:03]}  Kc8 {[%clk 0:00:29]} 79. Kb6 {[%clk 0:00:04]}  Kd7 {[%clk 0:00:29]} 80. Bb8 {[%clk 0:00:04]}  Kc8 {[%clk 0:00:28]} 81. Bf4 {[%clk 0:00:05]}  Kd7 {[%clk 0:00:29]} 82. Kb7 {[%clk 0:00:05]}  Kd8 {[%clk 0:00:27]} 83. Bd2 {[%clk 0:00:03]}  Kd7 {[%clk 0:00:27]} 84. Ba5 {[%clk 0:00:03]}  Kd6 {[%clk 0:00:26]} 85. Bc7+ {[%clk 0:00:04]}  Kd7 {[%clk 0:00:26]} 86. Bb6 {[%clk 0:00:02]}  Kd6 {[%clk 0:00:26]} 87. Kb8 {[%clk 0:00:02]}  Kc6 {[%clk 0:00:25]} 88. Ka7 {[%clk 0:00:03]}  Kd7 {[%clk 0:00:24]} 89. Kb7 {[%clk 0:00:03]} 1/2-1/2


[Site "https://www.chess.com"]

[Event "Titled Tuesday Blitz June 6 Early 2023"]
[White "Nikologorsky, Matfei"]
[Black "Skliarov, Viktor"]
[WhiteFideId "24102474"]
[BlackFideId "14106736"]
[WhiteElo "2153"]
[BlackElo "2317"]
[Result "1/2-1/2"]
[Round "10"]
[TimeControl "180+2"]
[Date "2023.06.06"]
[WhiteClock "0:00:09"]
[BlackClock "0:00:04"]
[Board "58"]

1. e4 {[%clk 0:03:00]}  c5 {[%clk 0:02:56]} 2. Nf3 {[%clk 0:03:00]}  Nc6 {[%clk 0:02:56]} 3. d4 {[%clk 0:03:01]}  cxd4 {[%clk 0:02:57]} 4. Nxd4 {[%clk 0:03:01]}  Nf6 {[%clk 0:02:57]} 5. Nc3 {[%clk 0:03:01]}  e5 {[%clk 0:02:57]} 6. Ndb5 {[%clk 0:03:01]}  d6 {[%clk 0:02:58]} 7. Bg5 {[%clk 0:03:02]}  a6 {[%clk 0:02:58]} 8. Bxf6 {[%clk 0:03:02]}  gxf6 {[%clk 0:02:55]} 9. Na3 {[%clk 0:03:01]}  b5 {[%clk 0:02:56]} 10. Nd5 {[%clk 0:03:01]}  f5 {[%clk 0:02:57]} 11. g3 {[%clk 0:03:01]}  Bg7 {[%clk 0:02:54]} 12. Bg2 {[%clk 0:03:00]}  O-O {[%clk 0:02:27]} 13. c3 {[%clk 0:02:56]}  fxe4 {[%clk 0:02:24]} 14. Bxe4 {[%clk 0:02:52]}  f5 {[%clk 0:02:25]} 15. Bg2 {[%clk 0:02:50]}  Ra7 {[%clk 0:02:23]} 16. Nc2 {[%clk 0:02:48]}  Kh8 {[%clk 0:02:21]} 17. a4 {[%clk 0:02:43]}  Be6 {[%clk 0:02:11]} 18. axb5 {[%clk 0:02:33]}  axb5 {[%clk 0:02:10]} 19. Rxa7 {[%clk 0:02:31]}  Nxa7 {[%clk 0:02:11]} 20. O-O {[%clk 0:02:31]}  Nc6 {[%clk 0:01:39]} 21. Qe2 {[%clk 0:02:24]}  Qb8 {[%clk 0:01:32]} 22. Rd1 {[%clk 0:02:15]}  e4 {[%clk 0:01:06]} 23. Nf4 {[%clk 0:02:03]}  Bb3 {[%clk 0:01:05]} 24. Ra1 {[%clk 0:01:54]}  b4 {[%clk 0:01:00]} 25. Ne3 {[%clk 0:01:18]}  bxc3 {[%clk 0:00:32]} 26. bxc3 {[%clk 0:01:18]}  Bxc3 {[%clk 0:00:32]} 27. Rb1 {[%clk 0:01:19]}  Nd4 {[%clk 0:00:33]} 28. Qh5 {[%clk 0:01:18]}  Qe8 {[%clk 0:00:33]} 29. Qxe8 {[%clk 0:01:04]}  Rxe8 {[%clk 0:00:33]} 30. Nxf5 {[%clk 0:01:05]}  Nxf5 {[%clk 0:00:33]} 31. Rxb3 {[%clk 0:01:04]}  Bd4 {[%clk 0:00:33]} 32. Rb5 {[%clk 0:00:49]}  e3 {[%clk 0:00:31]} 33. fxe3 {[%clk 0:00:44]}  Nxe3 {[%clk 0:00:31]} 34. Kh1 {[%clk 0:00:38]}  Ng4 {[%clk 0:00:28]} 35. Bd5 {[%clk 0:00:28]}  Re1+ {[%clk 0:00:08]} 36. Kg2 {[%clk 0:00:28]}  Ne3+ {[%clk 0:00:08]} 37. Kf3 {[%clk 0:00:29]}  Nxd5 {[%clk 0:00:08]} 38. Nxd5 {[%clk 0:00:26]}  Kg7 {[%clk 0:00:05]} 39. g4 {[%clk 0:00:21]}  Be5 {[%clk 0:00:04]} 40. h4 {[%clk 0:00:18]}  Rh1 {[%clk 0:00:04]} 41. h5 {[%clk 0:00:18]}  Kh6 {[%clk 0:00:04]} 42. Rb7 {[%clk 0:00:16]}  Rh3+ {[%clk 0:00:04]} 43. Ke4 {[%clk 0:00:16]}  Kg5 {[%clk 0:00:03]} 44. Rxh7 {[%clk 0:00:13]}  Kxg4 {[%clk 0:00:03]} 45. Ne3+ {[%clk 0:00:10]}  Kg5 {[%clk 0:00:04]} 46. Nf5 {[%clk 0:00:07]}  Rxh5 {[%clk 0:00:03]} 47. Rxh5+ {[%clk 0:00:07]}  Kxh5 {[%clk 0:00:03]} 48. Kd5 {[%clk 0:00:08]}  Kg5 {[%clk 0:00:04]} 49. Nxd6 {[%clk 0:00:09]} 1/2-1/2


[Site "https://www.chess.com"]

[Event "Titled Tuesday Blitz June 6 Early 2023"]
[White "ArchibaldCerveza29"]
[Black "Diaz Rosas, Julio Cesar"]
[BlackFideId "5105099"]
[WhiteElo "2451"]
[BlackElo "2284"]
[Result "1-0"]
[Round "10"]
[TimeControl "180+2"]
[Date "2023.06.06"]
[WhiteClock "0:00:06"]
[BlackClock "0:00:02"]
[Board "62"]

1. e4 {[%clk 0:03:00]}  c5 {[%clk 0:02:56]} 2. c3 {[%clk 0:03:00]}  Nf6 {[%clk 0:02:55]} 3. e5 {[%clk 0:03:00]}  Nd5 {[%clk 0:02:55]} 4. d4 {[%clk 0:03:01]}  cxd4 {[%clk 0:02:56]} 5. Nf3 {[%clk 0:03:01]}  g6 {[%clk 0:02:56]} 6. cxd4 {[%clk 0:03:00]}  Bg7 {[%clk 0:02:55]} 7. h4 {[%clk 0:03:00]}  h5 {[%clk 0:02:55]} 8. Nc3 {[%clk 0:03:00]}  Nxc3 {[%clk 0:02:54]} 9. bxc3 {[%clk 0:03:01]}  d6 {[%clk 0:02:55]} 10. exd6 {[%clk 0:03:01]}  Qxd6 {[%clk 0:02:55]} 11. Bd3 {[%clk 0:03:01]}  O-O {[%clk 0:02:54]} 12. Rb1 {[%clk 0:02:59]}  Bg4 {[%clk 0:02:46]} 13. Be4 {[%clk 0:02:48]}  Nc6 {[%clk 0:02:38]} 14. Rxb7 {[%clk 0:02:47]}  Rab8 {[%clk 0:02:30]} 15. Rxb8 {[%clk 0:02:45]}  Rxb8 {[%clk 0:02:31]} 16. O-O {[%clk 0:02:44]}  Na5 {[%clk 0:02:26]} 17. Qa4 {[%clk 0:02:42]}  Qc7 {[%clk 0:02:23]} 18. Ng5 {[%clk 0:02:33]}  Bd7 {[%clk 0:02:11]} 19. Bf4 {[%clk 0:02:17]}  e5 {[%clk 0:02:08]} 20. Qa3 {[%clk 0:01:53]}  exf4 {[%clk 0:02:05]} 21. Qe7 {[%clk 0:01:52]}  Rf8 {[%clk 0:02:00]} 22. Bd5 {[%clk 0:01:49]}  Nc6 {[%clk 0:01:37]} 23. Bxf7+ {[%clk 0:01:47]}  Kh8 {[%clk 0:01:37]} 24. Qc5 {[%clk 0:01:45]}  Qb6 {[%clk 0:01:29]} 25. Qd6 {[%clk 0:01:34]}  Nb8 {[%clk 0:01:27]} 26. Qe7 {[%clk 0:01:21]}  Qf6 {[%clk 0:01:23]} 27. Qb4 {[%clk 0:01:06]}  Nc6 {[%clk 0:01:13]} 28. Qc4 {[%clk 0:00:59]}  Bf5 {[%clk 0:00:59]} 29. Re1 {[%clk 0:00:55]}  Nd8 {[%clk 0:00:56]} 30. Bd5 {[%clk 0:00:54]}  Bh6 {[%clk 0:00:50]} 31. Qc5 {[%clk 0:00:27]}  f3 {[%clk 0:00:18]} 32. Bxf3 {[%clk 0:00:17]}  Bg7 {[%clk 0:00:17]} 33. Qxa7 {[%clk 0:00:16]}  Bd3 {[%clk 0:00:14]} 34. Re7 {[%clk 0:00:16]}  Bc4 {[%clk 0:00:10]} 35. Qc7 {[%clk 0:00:14]}  Bg8 {[%clk 0:00:10]} 36. Re3 {[%clk 0:00:14]}  Ne6 {[%clk 0:00:09]} 37. Nxe6 {[%clk 0:00:11]}  Bxe6 {[%clk 0:00:10]} 38. a4 {[%clk 0:00:09]}  Bg4 {[%clk 0:00:08]} 39. a5 {[%clk 0:00:08]}  Bh6 {[%clk 0:00:07]} 40. Rd3 {[%clk 0:00:07]}  Qf5 {[%clk 0:00:05]} 41. Qc4 {[%clk 0:00:05]}  Bxf3 {[%clk 0:00:03]} 42. Rxf3 {[%clk 0:00:06]}  Qb1+ {[%clk 0:00:03]} 43. Kh2 {[%clk 0:00:06]}  Rxf3 {[%clk 0:00:02]} 44. gxf3 {[%clk 0:00:06]}  Bf4+ {[%clk 0:00:02]} 45. Kg2 {[%clk 0:00:06]}  g5 {[%clk 0:00:01]} 46. Qc8+ {[%clk 0:00:06]}  Kh7 {[%clk 0:00:01]} 47. Qd7+ {[%clk 0:00:06]}  Kh6 {[%clk 0:00:01]} 48. Qe6+ {[%clk 0:00:05]}  Kg7 {[%clk 0:00:01]} 49. Qe7+ {[%clk 0:00:05]}  Kg6 {[%clk 0:00:02]} 50. Qe6+ {[%clk 0:00:05]}  Kg7 {[%clk 0:00:02]} 51. Qe7+ {[%clk 0:00:05]}  Kh8 {[%clk 0:00:02]} 52. Qf8+ {[%clk 0:00:05]}  Kh7 {[%clk 0:00:02]} 53. Qf7+ {[%clk 0:00:06]}  Kh6 {[%clk 0:00:03]} 54. Qf6+ {[%clk 0:00:06]}  Kh7 {[%clk 0:00:03]} 55. hxg5 {[%clk 0:00:07]}  Bd2 {[%clk 0:00:02]} 56. Qh6+ {[%clk 0:00:06]}  Kg8 {[%clk 0:00:02]} 57. Qe6+ {[%clk 0:00:06]}  Kg7 {[%clk 0:00:02]} 58. Qf6+ {[%clk 0:00:05]}  Kh7 {[%clk 0:00:02]} 59. Qf7+ {[%clk 0:00:05]}  Kh8 {[%clk 0:00:02]} 60. g6 {[%clk 0:00:06]} 1-0


[Site "https://www.chess.com"]

[Event "Titled Tuesday Blitz June 6 Early 2023"]
[White "Degenbaev, Aziz"]
[Black "Moore, Nicholas"]
[WhiteFideId "13802640"]
[BlackFideId "4303709"]
[WhiteElo "2152"]
[BlackElo "2423"]
[Result "1-0"]
[Round "10"]
[TimeControl "180+2"]
[Date "2023.06.06"]
[WhiteClock "0:01:06"]
[BlackClock "0:01:14"]
[Board "63"]

1. e4 {[%clk 0:03:00]}  c5 {[%clk 0:02:56]} 2. Nf3 {[%clk 0:03:01]}  e6 {[%clk 0:02:53]} 3. d4 {[%clk 0:03:01]}  cxd4 {[%clk 0:02:54]} 4. Nxd4 {[%clk 0:03:02]}  Nc6 {[%clk 0:02:55]} 5. Nc3 {[%clk 0:02:48]}  Qc7 {[%clk 0:02:54]} 6. a3 {[%clk 0:02:43]}  a6 {[%clk 0:02:52]} 7. Be3 {[%clk 0:02:34]}  b5 {[%clk 0:02:45]} 8. Nxc6 {[%clk 0:02:30]}  Qxc6 {[%clk 0:02:44]} 9. Bd3 {[%clk 0:02:21]}  Bb7 {[%clk 0:02:42]} 10. O-O {[%clk 0:02:14]}  Qc7 {[%clk 0:02:33]} 11. Qe2 {[%clk 0:02:03]}  Nf6 {[%clk 0:02:26]} 12. Bd4 {[%clk 0:01:47]}  d6 {[%clk 0:01:29]} 13. Rae1 {[%clk 0:01:37]}  Rc8 {[%clk 0:01:23]} 14. e5 {[%clk 0:01:15]}  dxe5 {[%clk 0:01:23]} 15. Bxe5 {[%clk 0:01:15]}  Bd6 {[%clk 0:01:23]} 16. Bxb5+ {[%clk 0:01:15]}  axb5 {[%clk 0:01:17]} 17. Nxb5 {[%clk 0:01:15]}  Bxe5 {[%clk 0:01:17]} 18. Nxc7+ {[%clk 0:01:15]}  Bxc7 {[%clk 0:01:18]} 19. Qb5+ {[%clk 0:01:15]}  Bc6 {[%clk 0:01:16]} 20. Qxc6+ {[%clk 0:01:15]}  Ke7 {[%clk 0:01:16]} 21. Qb7 {[%clk 0:01:13]}  Nd5 {[%clk 0:01:15]} 22. c4 {[%clk 0:01:13]}  Rb8 {[%clk 0:01:15]} 23. Qc6 {[%clk 0:01:07]}  Rb6 {[%clk 0:01:14]} 24. Qc5+ {[%clk 0:01:07]}  Bd6 {[%clk 0:01:14]} 25. Qd4 {[%clk 0:01:06]} 1-0


[Site "https://www.chess.com"]